bitfinex-derivatives/quotes_SOLF0:USTF0_20250130
["timestamp","ask_amount","ask_price","bid_price","bid_amount"]
[1738278558032,2.7,240.47,240.41,0.02754944]
[1738278558632,4.159,240.43,240.41,0.02754944]
[1738278558834,2.7,240.47,240.41,0.02754944]
[1738278559933,4.1591,240.42,240.41,0.02754944]
[1738278571745,4.1591,240.42,240.41,4.944e-05]
[1738278571943,11.21265869,240.42,240.31,2.8973]
[1738278572239,11.21265869,240.38,240.31,2.8973]
[1738278572841,4.1603,240.36,240.31,2.8973]
[1738278573040,0.02754944,240.37,240.32,0.03033251]
[1738278573947,4.1605,240.35,240.32,0.03033251]
[1738278574148,0.02754944,240.37,240.32,0.03033251]
[1738278575040,4.1602,240.36,240.32,0.03033251]
[1738278575346,0.02754944,240.37,240.32,0.03033251]
[1738278575536,11.21265869,240.35,240.32,0.03033251]
[1738278575736,4.1607,240.33,240.32,0.03033251]
[1738278576042,13.91265869,240.35,240.19,4.163]
[1738278576244,11.21265869,240.31,240.17,2.9138]
[1738278576437,4.1619,240.26,240.18,4.1633]
[1738278576638,4.1619,240.26,240.17,2.9138]
[1738278576941,11.21265869,240.25,240.17,2.9138]
[1738278577141,0.02993698,240.24,240.19,0.02974605]
[1738278577943,11.21265869,240.22,240.19,0.02974605]
[1738278578148,4.1629,240.2,240.19,0.02974605]
[1738278581249,4.1628,240.21,240.19,0.02974605]
[1738278581449,0.02993698,240.24,240.19,0.02974605]
[1738278581952,4.1624,240.23,240.19,0.02974605]
[1738278582547,0.02993698,240.24,240.19,0.02974605]
[1738278582754,4.1629,240.2,240.19,0.02974605]
[1738278584452,11.21265869,240.22,240.19,0.02974605]
[1738278586158,4.1629,240.2,240.19,0.02974605]
[1738278586454,11.21265869,240.22,240.19,0.02974605]
[1738278586755,2.72993698,240.24,240.19,0.02974605]
[1738278587060,0.02993698,240.24,240.19,0.02974605]
[1738278587459,2.7,240.3,240.19,0.02974605]
[1738278587753,2.7,240.3,240.19,7.09884605]
[1738278588661,0.02794497,240.27,240.19,7.09884605]
[1738278589159,0.02794497,240.27,240.22,4.1625]
[1738278589361,0.02794497,240.27,240.19,7.09884605]
[1738278590462,0.02794497,240.27,240.21,4.1627]
[1738278590759,0.02794497,240.27,240.19,7.09884605]
[1738278591360,0.02794497,240.27,240.2,4.1629]
[1738278592455,0.02794497,240.27,240.19,7.09884605]
[1738278592655,0.02794497,240.27,240.19,9.89174605]
[1738278593060,11.21265869,240.25,240.19,7.10894605]
[1738278593263,11.21265869,240.25,240.19,0.02974605]
[1738278594662,15.37485869,240.25,240.19,0.02974605]
[1738278594961,11.21265869,240.25,240.19,0.02974605]
[1738278595359,0.02794497,240.27,240.19,0.02974605]
[1738278596060,4.162,240.26,240.19,0.02974605]
[1738278598058,0.02794497,240.27,240.19,0.02974605]
[1738278598263,0.02794497,240.27,240.19,4.19284605]
[1738278598465,0.02794497,240.27,240.2,7.2965]
[1738278598662,0.02794497,240.27,240.2,11.4594]
[1738278599558,0.02794497,240.27,240.21,4.1627]
[1738278600363,0.02794497,240.27,240.2,7.2965]
[1738278600559,2.6565,240.36,240.21,11.21265869]
[1738278600767,11.21265869,240.37,240.21,11.21265869]
[1738278601662,11.21265869,240.37,240.27,0.02830653]
[1738278602767,4.1601,240.37,240.28,4.1615]
[1738278603670,4.1594,240.41,240.32,4.1608]
[1738278604070,4.1594,240.41,240.34,0.02913345]
[1738278604567,11.21265869,240.46,240.34,0.02913345]
[1738278604767,2.7,240.48,240.33,15.51435869]
[1738278605070,2.7,240.48,240.38,0.0297846]
[1738278605266,11.21265869,240.46,240.38,0.0297846]
[1738278606073,11.21265869,240.43,240.38,0.0297846]
[1738278606271,11.21265869,240.4,240.38,0.0297846]
[1738278606672,4.1596,240.39,240.38,0.0297846]
[1738278606873,11.21265869,240.4,240.28,2.7936]
[1738278607072,13.91265869,240.48,240.25,4.3017]
[1738278607073,11.21265869,240.35,240.25,4.3017]
[1738278607272,4.1608,240.32,240.25,4.3017]
[1738278608072,0.0297846,240.31,240.26,0.0317119]
[1738278608574,0.0297846,240.31,240.28,4.1615]
[1738278608874,11.21265869,240.38,240.27,2.7514]
[1738278609374,13.91265869,240.41,240.27,2.7514]
[1738278609568,11.21265869,240.38,240.27,2.7514]
[1738278609774,4.1603,240.36,240.27,2.7514]
[1738278609974,4.1603,240.36,240.3,0.02635176]
[1738278610574,2.7,240.41,240.3,0.02635176]
[1738278610868,13.91265869,240.44,240.3,0.02635176]
[1738278611068,4.1596,240.39,240.3,4.161]
[1738278611265,4.1596,240.39,240.35,0.02864471]
[1738278613174,11.21265869,240.44,240.35,0.02864471]
[1738278613374,2.7,240.43,240.35,0.02864471]
[1738278613975,11.21265869,240.41,240.35,0.02864471]
[1738278614575,4.1593,240.42,240.35,0.02864471]
[1738278616575,4.1593,240.41,240.35,0.02864471]
[1738278618474,11.21265869,240.48,240.35,0.02864471]
[1738278618679,5.6119,240.51,240.39,4.1595]
[1738278618878,5.6119,240.51,240.39,0.03054445]
[1738278619575,11.21265869,240.49,240.39,0.03054445]
[1738278619774,11.21265869,240.46,240.39,0.03054445]
[1738278620175,11.21265869,240.43,240.39,0.03054445]
[1738278620983,4.1592,240.42,240.39,0.03054445]
[1738278621181,11.21265869,240.46,240.39,0.03054445]
[1738278621578,4.1592,240.42,240.39,0.03054445]
[1738278622275,11.21265869,240.49,240.39,0.03054445]
[1738278622880,4.1584,240.46,240.39,0.03054445]
[1738278623779,4.1592,240.42,240.39,0.03054445]
[1738278624383,11.21265869,240.46,240.39,0.03054445]
[1738278624684,4.1593,240.41,240.39,0.03054445]
[1738278624985,11.21265869,240.46,240.39,0.03054445]
[1738278625183,4.1591,240.43,240.39,0.03054445]
[1738278626086,11.21265869,240.46,240.39,0.03054445]
[1738278627086,4.1591,240.43,240.39,0.03054445]
[1738278627385,11.21265869,240.46,240.39,0.03054445]
[1738278628086,4.1591,240.42,240.39,0.03054445]
[1738278633192,4.1595,240.4,240.39,0.03054445]
[1738278633488,15.37215869,240.4,240.39,0.03054445]
[1738278633687,4.1601,240.37,240.27,197.7514]
[1738278633888,11.21265869,240.37,240.27,2.7514]
[1738278634691,11.21265869,240.37,240.27,6.9131]
[1738278634891,0.02782204,240.34,240.3,0.02694861]
[1738278637591,4.18842204,240.34,240.3,0.02694861]
[1738278638295,0.02782204,240.34,240.3,0.02694861]
[1738278638989,0.02782204,240.34,240.31,4.161]
[1738278639692,0.02782204,240.34,240.32,4.1608]
[1738278640187,0.02782204,240.34,240.3,11.2396073]
[1738278640393,0.02782204,240.34,240.31,4.161]
[1738278641298,13.91265869,240.46,240.33,4.1606]
[1738278641796,4.1596,240.4,240.34,4.1605]
[1738278641997,11.21265869,240.46,240.34,4.1605]
[1738278642498,4.1597,240.39,240.38,0.03134263]
[1738278650604,11.33851057,240.39,240.38,0.03134263]
[1738278651605,7.17881057,240.39,240.27,2.7514]
[1738278651905,11.33951057,240.33,240.27,2.7514]
[1738278652805,0.02815008,240.32,240.28,0.02678791]
[1738278654908,4.18905008,240.32,240.28,0.02678791]
[1738278656698,0.02815008,240.32,240.28,11.24828511]
[1738278656902,0.02815008,240.32,240.31,4.161]
[1738278659301,0.02815008,240.32,240.28,11.24828511]
[1738278659509,0.02815008,240.32,240.3,4.1612]
[1738278661110,0.02815008,240.32,240.28,0.02678791]
[1738278661607,4.1614,240.29,240.28,0.02678791]
[1738278662513,11.2214972,240.31,240.18,7.2702]
[1738278662819,11.2214972,240.28,240.18,4.5333]
[1738278663013,11.2214972,240.28,240.15,168.56169659]
[1738278663213,13.8638972,240.31,240.15,168.56169659]
[1738278663414,2.7,240.29,240.13,11.2214972]
[1738278663812,0.03202358,240.25,240.21,0.02937888]
[1738278665320,15.41572078,240.25,240.21,0.02937888]
[1738278665619,11.25352078,240.25,240.21,0.02937888]
[1738278668127,15.41572078,240.25,240.21,0.02937888]
[1738278668326,0.03202358,240.25,240.21,0.02937888]
[1738278670326,0.03202358,240.25,240.22,4.1626]
[1738278670731,0.03202358,240.25,240.21,0.02937888]
[1738278671033,0.03202358,240.25,240.22,4.1625]
[1738278671227,0.03202358,240.25,240.21,0.02937888]
[1738278672125,0.03202358,240.25,240.24,4.1622]
[1738278672526,0.03202358,240.25,240.23,4.1624]
[1738278674429,0.03202358,240.25,240.21,0.02937888]
[1738278674833,4.1623,240.24,240.21,0.02937888]
[1738278675733,11.25352078,240.25,240.21,0.02937888]
[1738278675932,11.2214972,240.22,240.12,4.362]
[1738278677033,0.03129603,240.19,240.15,0.03107042]
[1738278677533,0.03129603,240.19,240.17,4.1634]
[1738278679334,0.03129603,240.19,240.15,0.03107042]
[1738278679637,11.2214972,240.31,240.17,11.2214972]
[1738278679835,4.1612,240.3,240.17,11.2214972]
[1738278680035,4.1612,240.3,240.2,4.1628]
[1738278680232,11.2214972,240.31,240.17,11.2214972]
[1738278680433,2.7,240.32,240.17,11.2214972]
[1738278680636,0.02920667,240.26,240.24,4.1621]
[1738278680837,4.161,240.31,240.24,4.1621]
[1738278681135,0.02649557,240.27,240.24,4.1621]
[1738278681435,0.02649557,240.27,240.22,4.1899378]
[1738278682232,0.02649557,240.27,240.22,0.0273378]
[1738278686641,7.21169001,240.27,240.22,0.0273378]
[1738278687341,0.02649557,240.27,240.22,0.0273378]
[1738278687641,0.02649557,240.27,240.23,7.18519444]
[1738278688045,0.02649557,240.27,240.26,4.1619]
[1738278691645,2.7,240.37,240.29,4.1613]
[1738278692344,4.1602,240.36,240.29,4.1613]
[1738278692844,0.03001184,240.35,240.3,0.02877375]
[1738278695646,0.03001184,240.35,240.31,4.161]
[1738278698953,0.03001184,240.35,240.3,4.18997375]
[1738278700453,0.03001184,240.35,240.3,0.02877375]
[1738278700656,0.03001184,240.35,240.33,4.1606]
[1738278702156,0.03001184,240.35,240.34,4.1605]
[1738278702955,4.1591,240.43,240.35,4.1602]
[1738278703152,11.22190415,240.45,240.35,4.1602]
[1738278703354,4.1593,240.41,240.31,4.2288]
[1738278703551,4.1593,240.41,240.33,4.1605]
[1738278703754,4.1593,240.41,240.31,4.2288]
[1738278704250,4.1591,240.42,240.34,0.03128065]
[1738278704951,13.92190415,240.45,240.34,0.03128065]
[1738278705156,2.6867,240.47,240.34,0.03128065]
[1738278705654,4.1586,240.46,240.34,0.03128065]
[1738278705858,2.6867,240.47,240.34,0.03128065]
[1738278706759,4.1588,240.44,240.34,0.03128065]
[1738278707261,4.1588,240.44,240.37,4.1598]
[1738278709962,4.1595,240.4,240.34,0.03128065]
[1738278710562,11.33787604,240.39,240.34,0.03128065]
[1738278710768,7.17817604,240.41,240.34,4.19168065]
[1738278711467,7.17817604,240.45,240.36,7.17817604]
[1738278711670,7.17817604,240.43,240.34,7.17817604]
[1738278711864,7.17817604,240.43,240.38,0.02659935]
[1738278712560,4.1594,240.41,240.38,0.02659935]
[1738278712763,7.17817604,240.41,240.38,0.02659935]
[1738278712966,7.17817604,240.39,240.38,0.02659935]
[1738278713169,11.33777604,240.39,240.38,0.02659935]
[1738278716573,4.1607,240.33,240.27,2.7883]
[1738278716767,7.17817604,240.3,240.22,11.40057604]
[1738278717162,11.33937604,240.3,240.22,15.56317604]
[1738278717567,7.17817604,240.26,240.24,0.02846562]
[1738278718776,11.34007604,240.26,240.24,0.02846562]
[1738278719270,7.17817604,240.26,240.24,0.02846562]
[1738278719571,4.1621,240.25,240.24,0.02846562]
[1738278720480,7.17817604,240.26,240.24,0.02846562]
[1738278720677,0.02902774,240.27,240.24,0.02846562]
[1738278723177,13.92514977,240.38,240.24,11.25551539]
[1738278723679,13.92514977,240.38,240.25,4.2601]
[1738278723882,4.1602,240.36,240.28,4.1615]
[1738278724073,13.92514977,240.38,240.25,4.2601]
[1738278724579,11.22704977,240.35,240.29,0.02716885]
[1738278725077,2.6981,240.38,240.29,0.02716885]
[1738278725078,11.22704977,240.32,240.29,0.02716885]
[1738278725273,4.1612,240.3,240.29,0.02716885]
[1738278727775,4.1621,240.25,240.17,4.1634]
[1738278728378,4.1622,240.24,240.16,8.4237]
[1738278728882,0.02716885,240.22,240.18,0.02801855]
[1738278729582,11.25421862,240.22,240.18,0.02801855]
[1738278730182,4.1628,240.21,240.18,0.02801855]
[1738278734283,11.25421862,240.22,240.18,0.02801855]
[1738278737087,4.1628,240.21,240.18,0.02801855]
[1738278737892,4.1631,240.19,240.18,0.02801855]
[1738278738288,15.39014977,240.19,240.18,0.02801855]
[1738278740690,4.164,240.15,240.08,4.6023]
[1738278740894,11.22704977,240.16,240.08,4.6023]
[1738278741089,11.22704977,240.16,240.06,9.21287872]
[1738278741495,11.22704977,240.13,240.02,4.289]
[1738278742092,11.22704977,240.13,240.05,0.03060933]
[1738278742093,4.19291129,240.1,240.05,0.03060933]
[1738278742290,0.02821129,240.1,240.05,0.03060933]
[1738278742687,7.19677374,240.08,240.05,0.03060933]
[1738278743191,7.19677374,240.06,240.05,0.03060933]
[1738278744487,0.02821129,240.1,240.05,0.03060933]
[1738278744686,11.27455172,240.1,240.05,0.03060933]
[1738278744891,15.43935172,240.1,240.05,0.03060933]
[1738278745291,11.27455172,240.1,240.05,0.03060933]
[1738278745489,0.02821129,240.1,240.05,0.03060933]
[1738278746496,0.02821129,240.1,240.06,4.1652]
[1738278746696,0.02821129,240.1,240.05,0.03060933]
[1738278747290,0.02821129,240.1,240.05,7.38490933]
[1738278747490,0.02821129,240.1,240.09,4.1648]
[1738278748398,15.40944043,240.19,240.11,4.1644]
[1738278749594,0.02697611,240.17,240.13,0.03201334]
[1738278750094,0.02697611,240.17,240.14,4.1639]
[1738278751599,0.02697611,240.17,240.13,0.03201334]
[1738278751600,0.02697611,240.17,240.13,4.19611334]
[1738278752908,0.02697611,240.17,240.13,0.03201334]
[1738278753106,11.24634043,240.16,240.13,0.03201334]
[1738278753604,4.164,240.14,240.13,0.03201334]
[1738278757009,0.02697611,240.17,240.13,0.03201334]
[1738278757402,0.02697611,240.17,240.13,4.19611334]
[1738278757807,0.02697611,240.17,240.13,0.03201334]
[1738278760009,11.24634043,240.16,240.13,0.03201334]
[1738278760512,4.1639,240.15,240.13,0.03201334]
[1738278761012,4.164,240.14,240.13,0.03201334]
[1738278761207,11.24634043,240.16,240.13,0.03201334]
[1738278761512,15.41014043,240.16,240.13,0.03201334]
[1738278761712,0.02697611,240.17,240.13,0.03201334]
[1738278763215,4.19047611,240.17,240.13,0.03201334]
[1738278763513,0.02697611,240.17,240.13,0.03201334]
[1738278764613,4.19037611,240.17,240.13,0.03201334]
[1738278764814,0.02697611,240.17,240.13,0.03201334]
[1738278765814,4.1629,240.21,240.13,0.03201334]
[1738278766015,11.24634043,240.22,240.13,0.03201334]
[1738278766612,11.24634043,240.22,240.15,4.1638]
[1738278767114,11.24634043,240.22,240.13,0.03201334]
[1738278767809,2.7,240.24,240.13,0.03201334]
[1738278768114,6.8624,240.24,240.16,4.1636]
[1738278768313,13.94634043,240.25,240.13,0.03201334]
[1738278768517,82.22493211,240.28,240.13,0.03201334]
[1738278768712,15.40804043,240.28,240.13,11.24634043]
[1738278768914,2.7,240.27,240.18,0.02816841]
[1738278769317,4.1621,240.25,240.18,0.02816841]
[1738278771521,4.1625,240.23,240.18,0.02816841]
[1738278772518,4.1626,240.22,240.18,0.02816841]
[1738278773221,11.24634043,240.25,240.18,0.02816841]
[1738278773422,4.1624,240.23,240.18,0.02816841]
[1738278774221,4.163,240.2,240.18,0.02816841]
[1738278776621,15.40944043,240.19,240.18,0.02816841]
[1738278778026,15.40944043,240.19,240.08,4.3264]
[1738278778027,4.1641,240.14,240.08,4.3264]
[1738278778223,11.24634043,240.14,240.08,4.3264]
[1738278778725,4.1642,240.13,240.08,4.3264]
[1738278779127,4.1642,240.13,240.08,4.35479492]
[1738278779128,4.19236841,240.13,240.08,4.35479492]
[1738278780131,0.02816841,240.13,240.08,4.35479492]
[1738278780333,0.02816841,240.13,240.08,0.02839492]
[1738278781228,4.1647,240.11,240.08,0.02839492]
[1738278782138,4.1647,240.1,240.08,0.02839492]
[1738278782844,4.1648,240.09,240.08,0.02839492]
[1738278785736,0.02816841,240.13,240.08,0.02839492]
[1738278787234,4.1647,240.1,240.08,0.02839492]
[1738278787434,7.19491279,240.11,240.08,0.02839492]
[1738278787639,4.1648,240.09,240.08,0.02839492]
[1738278788738,7.19491279,240.11,240.08,0.02839492]
[1738278788739,4.1646,240.11,240.08,0.02839492]
[1738278788938,0.02816841,240.13,240.08,0.02839492]
[1738278789331,4.1648,240.09,240.08,0.02839492]
[1738278790236,15.40596217,240.09,240.08,0.02839492]
[1738278790440,15.40596217,240.09,240.08,9.492e-05]
[1738278791536,11.24116217,240.09,239.96,2.7458]
[1738278791735,11.24116217,240.09,239.94,4.2932]
[1738278791736,11.24116217,240.04,239.94,4.2932]
[1738278792741,0.02895502,240.01,239.97,0.02794382]
[1738278793238,11.27011719,240.01,239.97,0.02794382]
[1738278794239,4.1665,240.0,239.97,0.02794382]
[1738278794442,11.27011719,240.01,239.97,0.02794382]
[1738278795442,0.02895502,240.01,239.97,0.02794382]
[1738278797139,0.02895502,240.01,240.0,4.1664]
[1738278797338,2.7,240.09,239.97,0.02794382]
[1738278797537,2.7,240.09,240.02,4.1659]
[1738278797742,2.7,240.09,239.96,2.6494]
[1738278798137,4.1648,240.1,239.96,2.6494]
[1738278798345,4.1645,240.12,239.98,11.24116217]
[1738278798533,0.02760831,240.05,240.01,11.27304308]
[1738278798738,2.7,240.13,240.04,11.24116217]
[1738278798938,2.7,240.13,240.05,6.8886]
[1738278799447,4.1636,240.16,240.05,6.8886]
[1738278799942,4.1636,240.16,240.08,0.02949085]
[1738278800440,4.1634,240.18,240.1,4.1647]
[1738278800943,11.24116217,240.19,240.1,4.1647]
[1738278801140,4.1633,240.18,240.1,4.1647]
[1738278801840,11.24116217,240.19,240.1,4.1647]
[1738278802041,15.40426217,240.19,240.1,4.1647]
[1738278802242,11.24116217,240.19,240.1,4.1647]
[1738278802638,11.24116217,240.13,240.08,0.02949085]
[1738278804542,11.24116217,240.16,240.08,0.02949085]
[1738278804743,11.24116217,240.16,240.05,4.2392]
[1738278804944,11.24116217,240.16,240.1,0.02645216]
[1738278805744,15.40486217,240.16,240.1,0.02645216]
[1738278807244,4.1638,240.15,240.1,0.02645216]
[1738278809140,11.24116217,240.16,240.1,0.02645216]
[1738278809336,4.164,240.14,240.1,0.02645216]
[1738278809836,4.1641,240.13,240.1,0.02645216]
[1738278811341,11.24116217,240.16,240.1,0.02645216]
[1738278811541,11.24116217,240.19,240.1,0.02645216]
[1738278812146,4.1633,240.18,240.12,4.1643]
[1738278813241,4.1633,240.18,240.11,4.1645]
[1738278814249,4.1633,240.18,240.12,4.1643]
[1738278815244,4.1633,240.18,240.1,4.19095216]
[1738278815549,4.1633,240.18,240.1,0.02645216]
[1738278815847,11.24116217,240.13,240.1,0.02645216]
[1738278818153,4.1645,240.11,240.1,0.02645216]
[1738278818352,11.24116217,240.13,240.1,0.02645216]
[1738278819153,11.24116217,240.16,240.1,0.02645216]
[1738278819555,4.1645,240.12,240.1,0.02645216]
[1738278819755,11.24116217,240.13,240.1,0.02645216]
[1738278821053,4.1645,240.11,240.1,0.02645216]
[1738278828160,4.164,240.14,240.1,0.02645216]
[1738278830556,4.1638,240.16,240.1,0.02645216]
[1738278832663,11.24116217,240.19,240.1,0.02645216]
[1738278832865,11.24116217,240.16,240.1,0.02645216]
[1738278833863,4.1644,240.12,240.1,0.02645216]
[1738278835161,11.24116217,240.16,240.1,0.02645216]
[1738278835368,4.1641,240.13,240.1,0.02645216]
[1738278836770,11.24116217,240.16,240.1,0.02645216]
[1738278837064,4.1645,240.11,240.1,0.02645216]
[1738278842170,2.7,240.2,240.1,0.02645216]
[1738278842371,4.1639,240.15,240.1,0.02645216]
[1738278842572,7.19196432,240.15,240.1,0.02645216]
[1738278842870,7.19196432,240.15,240.1,4.19095216]
[1738278843073,7.19196432,240.13,240.1,0.02645216]
[1738278843472,11.35646432,240.11,240.1,0.02645216]
[1738278847473,7.19196432,240.15,240.1,0.02645216]
[1738278847672,7.19196432,240.17,240.11,4.1645]
[1738278847873,7.19196432,240.17,240.1,0.02645216]
[1738278848072,7.19196432,240.17,240.1,7.21841648]
[1738278848479,7.19196432,240.17,240.12,4.1643]
[1738278848681,6.8628,240.21,240.12,4.1643]
[1738278848976,2.7,240.21,240.1,0.02645216]
[1738278849180,2.7,240.21,240.14,4.1638]
[1738278849573,15.39732605,240.22,240.15,0.03109976]
[1738278850881,11.23472605,240.25,240.15,0.03109976]
[1738278851182,2.7,240.24,240.15,0.03109976]
[1738278851983,6.8623,240.24,240.16,4.1636]
[1738278852378,6.8623,240.24,240.15,0.03109976]
[1738278852580,4.1627,240.22,240.15,0.03109976]
[1738278852885,11.23472605,240.21,240.15,0.03109976]
[1738278853585,11.23472605,240.18,240.15,0.03109976]
[1738278855990,4.1636,240.17,240.15,0.03109976]
[1738278856186,11.23472605,240.18,240.05,4.2142]
[1738278856392,11.23472605,240.14,240.05,4.2142]
[1738278856690,4.1641,240.13,240.05,8.3796]
[1738278857393,0.02758239,240.11,240.07,0.03059401]
[1738278861490,4.19208239,240.11,240.07,0.03059401]
[1738278861988,11.26230844,240.11,240.07,0.03059401]
[1738278862186,4.1649,240.09,240.07,0.03059401]
[1738278863186,0.02758239,240.11,240.07,0.03059401]
[1738278865097,4.19218239,240.11,240.07,0.03059401]
[1738278865389,0.02758239,240.11,240.07,0.03059401]
[1738278866589,0.02758239,240.11,240.07,4.19569401]
[1738278870001,0.02758239,240.11,240.07,0.03059401]
[1738278871097,0.02758239,240.11,240.08,4.165]
[1738278873806,0.02758239,240.11,240.07,0.03059401]
[1738278874702,0.02758239,240.11,240.1,4.1647]
[1738278877207,4.1636,240.17,240.11,4.1644]
[1738278877807,13.93472605,240.2,240.08,4.3437]
[1738278878104,11.23472605,240.2,240.08,4.3437]
[1738278878409,2.7,240.22,240.08,4.3437]
[1738278878609,7.18966922,240.19,240.11,7.18966922]
[1738278878904,7.18966922,240.19,240.13,0.02643382]
[1738278879107,7.18966922,240.19,240.15,4.1637]
[1738278879307,7.18966922,240.17,240.13,0.02643382]
[1738278879710,7.18966922,240.17,240.13,4.19043382]
[1738278880206,7.18966922,240.17,240.13,0.02643382]
[1738278880409,7.18966922,240.15,240.13,0.02643382]
[1738278880807,7.18966922,240.17,240.13,0.02643382]
[1738278881911,7.18966922,240.19,240.13,0.02643382]
[1738278882109,7.18966922,240.19,240.15,4.1638]
[1738278882512,4.1629,240.2,240.15,4.1638]
[1738278883313,4.1626,240.22,240.16,4.1635]
[1738278883511,4.1626,240.22,240.13,0.02643382]
[1738278883907,4.1624,240.23,240.18,4.1632]
[1738278884204,2.68,240.25,240.11,2.7174]
[1738278884410,2.68,240.25,240.18,0.02664841]
[1738278885113,4.1628,240.21,240.18,0.02664841]
[1738278885910,4.163,240.2,240.18,0.02664841]
[1738278886813,4.1631,240.19,240.18,0.02664841]
[1738278887916,11.23359504,240.23,240.18,0.02664841]
[1738278888613,4.1629,240.21,240.18,0.02664841]
[1738278890513,4.1621,240.25,240.18,4.18984841]
[1738278890715,13.91359504,240.26,240.18,0.02664841]
[1738278891114,13.91359504,240.26,240.19,4.163]
[1738278892019,13.91359504,240.26,240.18,4.18984841]
[1738278892913,11.23359504,240.23,240.18,0.02664841]
[1738278893116,4.1628,240.21,240.18,0.02664841]
[1738278895423,4.1626,240.22,240.18,0.02664841]
[1738278897927,11.23359504,240.23,240.18,0.02664841]
[1738278898119,4.1624,240.24,240.18,4.18974841]
[1738278898320,13.91359504,240.26,240.18,4.18974841]
[1738278899222,13.91359504,240.26,240.18,0.02664841]
[1738278900725,4.1624,240.23,240.18,0.02664841]
[1738278900918,11.23359504,240.23,240.18,0.02664841]
[1738278901523,4.1631,240.19,240.18,0.02664841]
[1738278901826,11.23359504,240.2,240.08,4.3437]
[1738278902024,4.1636,240.16,240.09,4.1647]
[1738278902526,7.19281923,240.14,240.1,4.1646]
[1738278902923,7.22298501,240.14,240.1,4.19263346]
[1738278903122,0.03016578,240.14,240.12,4.1643]
[1738278903623,0.03016578,240.14,240.1,0.02803346]
[1738278904221,7.19281923,240.25,240.12,7.19281923]
[1738278904417,7.19281923,240.25,240.15,7.19281923]
[1738278904627,11.35561923,240.21,240.15,4.1636]
[1738278904822,7.19281923,240.19,240.13,2.8131]
[1738278905027,7.19281923,240.15,240.08,4.3437]
[1738278905519,7.19281923,240.17,240.09,0.02697143]
[1738278905718,7.19281923,240.17,240.08,4.3437]
[1738278905919,7.19281923,240.17,240.13,4.1641]
[1738278906222,7.19281923,240.17,240.11,0.02712956]
[1738278907830,4.1638,240.15,240.11,4.19162956]
[1738278909233,4.1636,240.17,240.11,0.02712956]
[1738278909429,4.1636,240.17,240.12,4.1643]
[1738278909825,7.19281923,240.21,240.13,7.19281923]
[1738278910332,7.19281923,240.21,240.15,0.03047679]
[1738278910734,7.19281923,240.21,240.16,4.1636]
[1738278911034,4.1628,240.22,240.16,4.1636]
[1738278911630,7.19281923,240.23,240.15,0.03047679]
[1738278911837,7.19281923,240.21,240.15,4.19427679]
[1738278912032,7.19281923,240.19,240.15,0.03047679]
[1738278912732,4.1634,240.18,240.15,0.03047679]
[1738278913129,7.19281923,240.17,240.15,0.03047679]
[1738278914137,4.1636,240.16,240.15,0.03047679]
[1738278915438,11.35631923,240.17,240.15,0.03047679]
[1738278915738,7.19281923,240.19,240.15,0.03047679]
[1738278916832,11.35611923,240.19,240.15,0.03047679]
[1738278918541,4.1633,240.19,240.15,0.03047679]
[1738278919241,7.19281923,240.21,240.15,0.03047679]
[1738278919441,7.19281923,240.25,240.16,7.19281923]
[1738278920634,7.19281923,240.21,240.15,0.03047679]
[1738278921441,7.19281923,240.21,240.17,4.1634]
[1738278921737,7.19281923,240.23,240.17,4.1634]
[1738278922433,7.19281923,240.23,240.15,0.03047679]
[1738278922634,7.19281923,240.23,240.18,4.1632]
[1738278923342,4.1624,240.24,240.18,4.1632]
[1738278923942,7.19281923,240.28,240.2,7.19281923]
[1738278924143,7.19281923,240.3,240.2,7.19281923]
[1738278924351,7.19281923,240.3,240.24,4.1622]
[1738278925043,11.35411923,240.3,240.22,11.38609759]
[1738278925443,11.35411923,240.3,240.22,4.19327836]
[1738278926644,11.35411923,240.3,240.24,4.1622]
[1738278926841,4.161,240.31,240.24,4.1622]
[1738278927335,7.19281923,240.32,240.24,7.19281923]
[1738278927643,7.19281923,240.32,240.26,4.1619]
[1738278927839,7.19281923,240.32,240.24,7.19281923]
[1738278928344,4.1614,240.29,240.24,7.19281923]
[1738278928539,7.19281923,240.3,240.22,7.22369759]
[1738278928742,7.19281923,240.3,240.22,0.03087836]
[1738278929241,7.19281923,240.26,240.22,0.03087836]
[1738278929548,7.19281923,240.24,240.22,0.03087836]
[1738278930446,4.1624,240.23,240.22,0.03087836]
[1738278935947,7.19281923,240.24,240.22,0.03087836]
[1738278935948,11.35511923,240.24,240.22,0.03087836]
[1738278936146,7.19281923,240.24,240.22,0.03087836]
[1738278936549,4.1624,240.23,240.22,0.03087836]
[1738278941244,7.19281923,240.24,240.22,0.03087836]